fUST/lending_fUST_20240111
["ID","MTS","AMOUNT","RATE_DAILY","PERIOD"]
[311161831,1704948641224,-500.0,0.00030136,2]
[311161832,1704948641233,-500.0,0.00030136,2]
[311161833,1704948641243,-500.0,0.00030136,2]
[311161834,1704948641253,-500.0,0.00030136,2]
[311161835,1704948641262,-150.0,0.00030136,2]
[311161836,1704948641270,-500.0,0.00030136,2]
[311161837,1704948641280,-500.0,0.00030136,2]
[311161838,1704948641289,-500.0,0.00030136,2]
[311161839,1704948641298,-500.0,0.00030136,2]
[311161840,1704948641307,-163.83594978,0.00030136,2]
[311161841,1704948641316,-500.0,0.00030136,2]
[311161842,1704948641326,-500.0,0.00030136,2]
[311161843,1704948641335,-500.0,0.00030136,2]
[311161844,1704948641344,-500.0,0.00030136,2]
[311161845,1704948641352,-500.0,0.00030136,2]
[311161846,1704948641361,-514.32836231,0.00030136,2]
[311161847,1704948641370,-500.0,0.00030136,2]
[311161848,1704948641379,-409.81265157,0.00030136,2]
[311161849,1704948641388,-550.13592132,0.00030136,2]
[311161850,1704948641397,-500.0,0.00030136,2]
[311161851,1704948641407,-500.0,0.00030136,2]
[311161852,1704948641416,-500.0,0.00030136,2]
[311161853,1704948641425,-508.98992872,0.00030136,2]
[311161854,1704948641434,-500.0,0.00030136,2]
[311161855,1704948641443,-500.0,0.00030136,2]
[311161856,1704948641451,-500.0,0.00030136,2]
[311161857,1704948641461,-500.0,0.00030136,2]
[311161858,1704948641470,-500.0,0.00030136,2]
[311161859,1704948641480,-500.0,0.00030136,2]
[311161860,1704948641489,-500.0,0.00030136,2]
[311161861,1704948641497,-500.0,0.00030136,2]
[311161862,1704948641507,-500.0,0.00030136,2]
[311161863,1704948641515,-500.0,0.00030136,2]
[311161864,1704948641528,-505.28809719,0.00030136,2]
[311161865,1704948641538,-500.0,0.00030136,2]
[311161866,1704948641547,-219.89053407,0.00030136,2]
[311161867,1704948641556,-500.0,0.00030136,2]
[311161868,1704948641565,-500.0,0.00030136,2]
[311161869,1704948641574,-404.64629949,0.00030136,2]
[311161870,1704948641583,-500.0,0.00030136,2]
[311161871,1704948641592,-500.0,0.00030136,2]
[311161872,1704948641601,-500.0,0.00030136,2]
[311161873,1704948641609,-500.0,0.00030136,2]
[311161874,1704948641618,-501.95390524,0.00030136,2]
[311161875,1704948641627,-1621.38,0.00030136,2]
[311161876,1704948641636,-500.0,0.00030136,2]
[311161877,1704948641645,-258.27903606,0.00030136,2]
[311161878,1704948641654,-500.0,0.00030136,2]
[311161879,1704948641663,-545.28763592,0.00030136,2]
[311161880,1704948641672,-621.3914889,0.00030136,2]
[311161881,1704948641681,-311.39649081,0.00030136,2]
[311161882,1704948641690,-500.0,0.00030136,2]
[311161883,1704948641699,-505.99846303,0.00030136,2]
[311161884,1704948641708,-500.0,0.00030136,2]
[311161885,1704948641718,-501.19999599,0.00030136,2]
[311161886,1704948641728,-500.0,0.00030136,2]
[311161887,1704948641738,-500.0,0.00030136,2]
[311161888,1704948641749,-225.87099317,0.00030136,2]
[311161889,1704948641758,-500.0,0.00030136,2]
[311161890,1704948641767,-1001.29,0.00030136,2]
[311161891,1704948641778,-500.0,0.00030136,2]
[311161892,1704948641787,-500.0,0.00030136,2]
[311161893,1704948641796,-502.12,0.00030136,2]
[311161894,1704948641805,-574.12,0.00030136,2]
[311161895,1704948641814,-500.0,0.00030136,2]
[311161896,1704948641824,-500.0,0.00030136,2]
[311161897,1704948641833,-179.29970668,0.00030136,2]
[311161898,1704948641842,-500.0,0.00030136,2]
[311161899,1704948641850,-459.0460775,0.00030136,2]
[311161900,1704948641859,-500.0,0.00030136,2]
[311161901,1704948641868,-518.76104554,0.00030136,2]
[311161902,1704948641877,-500.0,0.00030136,2]
[311161903,1704948641886,-500.0,0.00030136,2]
[311161904,1704948641895,-520.07099827,0.00030136,2]
[311161905,1704948641904,-500.0,0.00030136,2]
[311161906,1704948641913,-500.0,0.00030136,2]
[311161907,1704948641921,-500.0,0.00030136,2]
[311161908,1704948641930,-500.0,0.00030136,2]
[311161909,1704948641939,-500.0,0.00030136,2]
[311161910,1704948641949,-500.0,0.00030136,2]
[311161911,1704948641958,-500.0,0.00030136,2]
[311161912,1704948641967,-500.0,0.00030136,2]
[311161913,1704948641976,-500.0,0.00030136,2]
[311161914,1704948641985,-500.0,0.00030136,2]
[311161915,1704948641994,-500.0,0.00030136,2]
[311161916,1704948642003,-500.0,0.00030136,2]
[311161917,1704948642012,-500.0,0.00030136,2]
[311161918,1704948642022,-500.0,0.00030136,2]
[311161919,1704948642031,-177.50791319,0.00030136,2]
[311161920,1704948642040,-263.79702132,0.00030136,2]
[311161921,1704948642049,-504.3360633,0.00030136,2]
[311161922,1704948642058,-500.0,0.00030136,2]
[311161923,1704948642067,-501.48834983,0.00030136,2]
[311161924,1704948642076,-500.0,0.00030136,2]
[311161925,1704948642085,-597.46,0.00030136,2]
[311161926,1704948642095,-500.0,0.00030136,2]
[311161927,1704948642104,-531.01278094,0.00030136,2]
[311161928,1704948642113,-500.0,0.00030136,2]
[311161929,1704948642123,-500.0,0.00030136,2]
[311161930,1704948642133,-655.2,0.00030136,2]
[311161931,1704948642143,-500.0,0.00030136,2]
[311161932,1704948642152,-500.0,0.00030136,2]
[311161933,1704948642162,-573.64327184,0.00030136,2]
[311161934,1704948642172,-500.0,0.00030136,2]
[311161935,1704948642181,-500.0,0.00030136,2]
[311161936,1704948642190,-500.0,0.00030136,2]
[311161937,1704948642199,-204.85076196,0.00030136,2]
[311161938,1704948642210,-501.71505384,0.00030136,2]
[311161939,1704948642219,-500.0,0.00030136,2]
[311161940,1704948642228,-503.08297517,0.00030136,2]
[311161941,1704948642237,-500.0,0.00030136,2]
[311161942,1704948642247,-500.0,0.00030136,2]
[311161943,1704948642256,-500.0,0.00030136,2]
[311161944,1704948642265,-503.53888354,0.00030136,2]
[311161945,1704948642275,-500.0,0.00030136,2]
[311161946,1704948642284,-500.0,0.00030136,2]
[311161947,1704948642294,-502.42860123,0.00030136,2]
[311161948,1704948642305,-500.0,0.00030136,2]
[311161949,1704948642314,-500.0,0.00030136,2]
[311161950,1704948642323,-681.26,0.00030136,2]
[311161951,1704948642332,-501.56247906,0.00030136,2]
[311161952,1704948642341,-500.0,0.00030136,2]
[311161953,1704948642350,-500.0,0.00030136,2]
[311161954,1704948642360,-500.0,0.00030136,2]
[311161955,1704948642370,-503.44386902,0.00030136,2]
[311161956,1704948642379,-500.0,0.00030136,2]
[311161957,1704948642388,-500.0,0.00030136,2]
[311161958,1704948642397,-500.0,0.00030136,2]
[311161959,1704948642406,-500.0,0.00030136,2]
[311161960,1704948642415,-500.0,0.00030136,2]
[311161961,1704948642425,-500.0,0.00030136,2]
[311161962,1704948642434,-500.0,0.00030136,2]
[311161963,1704948642444,-533.22,0.00030136,2]
[311161964,1704948642453,-500.0,0.00030136,2]
[311161965,1704948642463,-500.0,0.00030136,2]
[311161966,1704948642472,-500.0,0.00030136,2]
[311161967,1704948642482,-500.27103882,0.00030136,2]
[311161968,1704948642491,-500.0,0.00030136,2]
[311161969,1704948642500,-500.0,0.00030136,2]
[311161970,1704948642509,-500.0,0.00030136,2]
[311161971,1704948642519,-500.0,0.00030136,2]
[311161972,1704948642534,-500.0,0.00030136,2]
[311161973,1704948642543,-500.0,0.00030136,2]
[311161974,1704948642554,-500.0,0.00030136,2]
[311161975,1704948642562,-500.0,0.00030136,2]
[311161976,1704948642572,-507.22979566,0.00030136,2]
[311161977,1704948642582,-500.0,0.00030136,2]
[311161978,1704948642591,-500.0,0.00030136,2]
[311161979,1704948642602,-500.0,0.00030136,2]
[311161980,1704948642612,-500.0,0.00030136,2]
[311161981,1704948642622,-226.98517404,0.00030136,2]
[311161982,1704948642631,-500.0,0.00030136,2]
[311161983,1704948642641,-500.0,0.00030136,2]
[311161984,1704948642650,-500.0,0.00030136,2]
[311161985,1704948642659,-500.0,0.00030136,2]
[311161986,1704948642669,-504.47013511,0.00030136,2]
[311161987,1704948642678,-500.0,0.00030136,2]
[311161988,1704948642687,-500.0,0.00030136,2]
[311161989,1704948642696,-500.0,0.00030136,2]
[311161990,1704948642705,-502.07502947,0.00030136,2]
[311161991,1704948642714,-3027.97,0.00030136,2]
[311161992,1704948642723,-500.0,0.00030136,2]
[311161993,1704948642732,-500.0,0.00030136,2]
[311161994,1704948642741,-500.0,0.00030136,2]
[311161995,1704948642750,-1214.78,0.00030136,2]
[311161996,1704948642759,-676.3,0.00030136,2]
[311161997,1704948642768,-500.0,0.00030136,2]
[311161998,1704948642778,-500.0,0.00030136,2]
[311161999,1704948642787,-500.0,0.00030136,2]
[311162000,1704948642796,-967.17,0.00030136,2]
[311162001,1704948642805,-500.0,0.00030136,2]
[311162002,1704948642814,-500.0,0.00030136,2]
[311162003,1704948642823,-500.0,0.00030136,2]
[311162004,1704948642832,-500.0,0.00030136,2]
[311162005,1704948642841,-500.0,0.00030136,2]
[311162006,1704948642850,-500.0,0.00030136,2]
[311162007,1704948642859,-500.0,0.00030136,2]
[311162008,1704948642869,-511.70322812,0.00030136,2]
[311162009,1704948642877,-160.18086769,0.00030136,2]
[311162010,1704948642886,-534.2,0.00030136,2]
[311162011,1704948642895,-500.0,0.00030136,2]
[311162012,1704948642904,-500.0,0.00030136,2]
[311162013,1704948642913,-654.98,0.00030136,2]
[311162014,1704948642922,-315.45310074,0.00030136,2]
[311162015,1704948642931,-500.0,0.00030136,2]
[311162016,1704948642941,-270.6920062,0.00030136,2]
[311162017,1704948642950,-950.06,0.00030136,2]
[311162018,1704948642959,-1173.55,0.00030136,2]
[311162019,1704948642969,-545.11433363,0.00030136,2]
[311162020,1704948642979,-500.0,0.00030136,2]
[311162021,1704948642988,-860.45,0.00030136,2]
[311162022,1704948642997,-329.4052217,0.00030136,2]
[311162023,1704948643006,-500.0,0.00030136,2]
[311162024,1704948643015,-500.0,0.00030136,2]
[311162025,1704948643024,-500.0,0.00030136,5]
[311162026,1704948643033,-500.0,0.00030136,2]
[311162027,1704948643042,-1988.11,0.00030136,2]
[311162028,1704948643051,-500.0,0.00030136,2]
[311162029,1704948643060,-815.25,0.00030136,2]
[311162030,1704948643069,-500.0,0.00030136,2]
[311162031,1704948643078,-500.53909396,0.00030136,2]
[311162032,1704948643087,-500.0,0.00030136,2]
[311162033,1704948643096,-500.0,0.00030136,2]
[311162034,1704948643105,-500.0,0.00030136,2]
[311162035,1704948643114,-500.0,0.00030136,2]
[311162036,1704948643123,-500.0,0.00030136,2]
[311162037,1704948643132,-500.0,0.00030136,2]
[311162038,1704948643142,-1000.0,0.00030136,2]
[311162039,1704948643151,-500.0,0.00030136,2]
[311162040,1704948643161,-181.47548314,0.00030136,2]
[311162041,1704948643171,-500.0,0.00030136,2]
[311162042,1704948643181,-9277.48,0.00030136,2]
[311162043,1704948643190,-513.17611346,0.00030136,2]
[311162044,1704948643199,-500.0,0.00030136,2]
[311162045,1704948643208,-500.0,0.00030136,2]
[311162046,1704948643218,-500.0,0.00030136,2]
[311162047,1704948643227,-500.0,0.00030136,2]
[311162048,1704948643237,-508.57057146,0.00030136,2]
[311162049,1704948643246,-500.50039917,0.00030136,2]
[311162050,1704948643255,-1057.64,0.00030136,2]
[311162051,1704948643264,-500.0,0.00030136,2]
[311162052,1704948643274,-500.0,0.00030136,2]
[311162053,1704948643283,-500.0,0.00030136,2]
[311162054,1704948643292,-500.0,0.00030136,2]
[311162055,1704948643302,-725.51,0.00030136,2]
[311162056,1704948643311,-500.0,0.00030136,2]
[311162057,1704948643320,-500.0,0.00030136,2]
[311162058,1704948643330,-500.0,0.00030136,2]
[311162059,1704948643339,-500.0,0.00030136,2]
[311162060,1704948643348,-500.0,0.00030136,2]
[311162061,1704948643357,-500.0,0.00030136,2]
[311162062,1704948643366,-500.0,0.00030136,2]
[311162063,1704948643376,-500.0,0.00030136,2]
[311162064,1704948643385,-500.0,0.00030136,2]
[311162065,1704948643394,-500.0,0.00030136,2]
[311162066,1704948643403,-500.0,0.00030136,2]
[311162067,1704948643412,-500.0,0.00030136,2]
[311162068,1704948643421,-779.49,0.00030136,2]
[311162069,1704948643430,-171.01,0.00030136,2]
[311162070,1704948643439,-500.0,0.00030136,2]
[311162071,1704948643448,-503.96560501,0.00030136,2]
[311162072,1704948643458,-602.92967329,0.00030136,2]
[311162073,1704948643468,-500.0,0.00030136,2]
[311162074,1704948643477,-500.0,0.00030136,2]
[311162075,1704948643487,-500.0,0.00030136,2]
[311162080,1704948643588,-5624.89,0.00030136,2]
[311162081,1704948643598,-500.0,0.00030136,2]
[311162082,1704948643608,-500.0,0.00030136,2]
[311162083,1704948643617,-500.0,0.00030136,2]
[311162084,1704948643627,-500.0,0.00030136,2]
[311162085,1704948643637,-514.53740638,0.00030136,2]
[311162086,1704948643646,-6467.16,0.00030136,2]
[311162087,1704948643656,-6134.31571473,0.00030136,10]
[311162088,1704948643665,-500.0,0.00030136,2]
[311162089,1704948643675,-500.0,0.00030136,2]
[311162090,1704948643684,-500.0,0.00030136,2]
[311162091,1704948643693,-501.0477852,0.00030136,2]
[311162093,1704948643703,-500.0,0.00030136,2]
[311162094,1704948643712,-2356.85,0.00030136,2]
[311162096,1704948643720,-3368.17,0.00030136,2]
[311162098,1704948643730,-500.0,0.00030136,2]
[311162101,1704948643742,-500.0,0.00030136,2]
[311162105,1704948643751,-542.29799309,0.00030136,2]
[311162107,1704948643760,-501.82843532,0.00030136,2]
[311162109,1704948643769,-500.0,0.00030136,2]
[311162111,1704948643780,-500.0,0.00030136,2]
[311162112,1704948643790,-1627.99,0.00030136,2]
[311162114,1704948643799,-500.0,0.00030136,2]
[311162115,1704948643807,-500.0,0.00030136,2]
[311162117,1704948643818,-500.0,0.00030136,2]
[311162119,1704948643827,-1737.42,0.00030136,2]
[311162121,1704948643837,-500.0,0.00030136,2]
[311162123,1704948643846,-709.58,0.00030136,2]
[311162125,1704948643856,-500.0,0.00030136,2]
[311162127,1704948643865,-14687.03,0.00030136,2]
[311162129,1704948643874,-500.0,0.00030136,2]
[311162131,1704948643883,-500.0,0.00030136,2]
[311162133,1704948643892,-500.0,0.00030136,2]
[311162135,1704948643900,-500.0,0.00030136,2]
[311162137,1704948643910,-500.0,0.00030136,2]
[311162138,1704948643918,-500.0,0.00030136,2]
[311162139,1704948643927,-219.92,0.00030136,2]
[311162140,1704948643936,-5000.0,0.00030137,2]
[311162141,1704948643945,-5000.0,0.00030137,2]
[311162142,1704948643954,-5000.0,0.00030137,2]
[311162143,1704948643964,-2968.5594772,0.00030137,2]
[311162145,1704948643981,-744.9312935,0.00030137,2]
[311162146,1704948643994,-405.67767986,0.00030137,2]
[311162147,1704948644004,-155.0,0.00030137,2]
[311162148,1704948644014,-2000.0,0.0003014,2]
[311162150,1704948644024,-2000.0,0.0003015,2]
[311162152,1704948644033,-2000.0,0.0003016,2]
[311162154,1704948644043,-2000.0,0.0003017,2]
[311162156,1704948644053,-2000.0,0.0003018,2]
[311162158,1704948644063,-2000.0,0.0003019,2]
[311162160,1704948644072,-681.11468394,0.000302,3]
[311162162,1704948644082,-2000.0,0.000302,2]
[311162164,1704948644092,-2000.0,0.0003021,2]
[311162166,1704948644102,-2000.0,0.0003022,2]
[311162168,1704948644112,-2000.0,0.0003023,2]
[311162170,1704948644122,-2000.0,0.0003024,2]
[311162172,1704948644131,-2091.019858,0.0003025,2]
[311162174,1704948644142,-153.73462599,0.00030307,7]
[311162176,1704948644151,-172.62642446,0.0003031,2]
[311162178,1704948644160,-306.0,0.00030343,2]
[311162180,1704948644170,-816.731,0.0003038,4]
[311162182,1704948644180,-816.732,0.0003038,4]
[311162184,1704948644189,-816.731,0.0003038,4]
[311162186,1704948644199,-816.731,0.0003038,4]
[311162188,1704948644208,-816.732,0.0003038,4]
[311162190,1704948644218,-5000.0,0.000304,2]
[311162192,1704948644228,-2807.34553386,0.00030406,4]
[311162194,1704948644237,-309.97210316,0.00030406,2]
[311162196,1704948644247,-310.651265,0.00030408,4]
[311162198,1704948644257,-279.69467467,0.00030408,2]
[311162200,1704948644266,-728.1894664,0.00030408,4]
[311162202,1704948644276,-1592.6986975,0.00030408,4]
[311162204,1704948644285,-177.3925437,0.00030408,4]
[311162206,1704948644295,-184.47920681,0.00030408,4]
[311162208,1704948644304,-5587.25018258,0.00030408,4]
[311162210,1704948644314,-184.54495661,0.00030408,4]
[311162212,1704948644323,-156.78990139,0.00030408,4]
[311162214,1704948644333,-169.64303044,0.00030408,4]
[311162217,1704948644342,-260.04621447,0.00030408,4]
[311162219,1704948644352,-164.08761243,0.00030408,4]
[311162221,1704948644361,-979.68521314,0.00030408,4]
[311162223,1704948644370,-213.62341382,0.00030408,4]
[311162225,1704948644379,-226.93304079,0.00030408,4]
[311162227,1704948644388,-368.32099485,0.00030408,4]
[311162229,1704948644397,-10668.81396981,0.00030408,4]
[311162231,1704948644407,-265.66183442,0.00030408,4]
[311162233,1704948644418,-222.06298067,0.00030408,4]
[311162235,1704948644428,-381.49233081,0.00030408,4]
[311162237,1704948644438,-444.41920813,0.00030408,4]
[311162239,1704948644448,-110595.68728906,0.00030408,4]
[311162241,1704948644458,-500.0,0.0003041,2]
[311162243,1704948644469,-500.0,0.0003041,2]
[311162245,1704948644477,-500.0,0.0003041,2]
[311162247,1704948644486,-500.0,0.0003041,2]
[311162249,1704948644495,-500.0,0.0003041,2]
[311162250,1704948644504,-500.0,0.0003041,2]
[311162252,1704948644513,-500.0,0.0003041,2]
[311162255,1704948644522,-500.0,0.0003041,2]
[311162256,1704948644531,-500.0,0.0003041,2]
[311162258,1704948644541,-500.0,0.0003041,2]
[311162260,1704948644550,-500.0,0.0003041,2]
[311162262,1704948644559,-150.0,0.0003041,2]
[311162263,1704948644568,-500.0,0.0003041,2]
[311162264,1704948644577,-500.0,0.0003041,2]
[311162265,1704948644587,-500.0,0.0003041,2]
[311162266,1704948644596,-500.0,0.0003041,2]
[311162267,1704948644605,-500.0,0.0003041,2]
[311162268,1704948644614,-500.0,0.0003041,2]
[311162269,1704948644624,-500.0,0.0003041,2]
[311162270,1704948644632,-150.88778826,0.0003041,2]
[311162271,1704948644642,-500.0,0.0003041,2]
[311162272,1704948644651,-500.0,0.0003041,2]
[311162273,1704948644660,-500.0,0.0003041,2]
[311162274,1704948644669,-502.99875543,0.0003041,2]
[311162275,1704948644678,-500.0,0.0003041,2]
[311162276,1704948644690,-511.47851661,0.0003041,2]
[311162277,1704948644700,-499.82950867,0.0003041,2]
[311162278,1704948644709,-500.0,0.0003041,2]
[311162279,1704948644720,-503.38877477,0.0003041,2]
[311162280,1704948644729,-500.0,0.0003041,2]
[311162281,1704948644741,-500.0,0.0003041,2]
[311162282,1704948644749,-500.0,0.0003041,2]
[311162283,1704948644759,-280.0,0.0003041,2]
[311162284,1704948644768,-500.0,0.0003041,2]
[311162285,1704948644778,-490.65448554,0.0003041,2]
[311162286,1704948644787,-500.0,0.0003041,2]
[311162287,1704948644799,-500.0,0.0003041,2]
[311162288,1704948644809,-500.0,0.0003041,2]
[311162289,1704948644819,-500.0,0.0003041,2]
[311162290,1704948644829,-153.08120164,0.0003041,2]
[311162291,1704948644838,-500.0,0.0003041,2]
[311162292,1704948644847,-500.0,0.0003041,2]
[311162293,1704948644857,-1621.38,0.0003041,2]
[311162294,1704948644867,-500.0,0.0003041,2]
[311162295,1704948644876,-500.0,0.0003041,2]
[311162296,1704948644885,-633.21734718,0.0003041,2]
[311162297,1704948644894,-500.0,0.0003041,2]
[311162298,1704948644903,-588.40848288,0.0003041,2]
[311162299,1704948644912,-500.0,0.0003041,2]
[311162300,1704948644922,-500.0,0.0003041,2]
[311162301,1704948644931,-1001.29,0.0003041,2]
[311162302,1704948644940,-500.0,0.0003041,2]
[311162303,1704948644950,-500.0,0.0003041,2]
[311162304,1704948644959,-502.12,0.0003041,2]
[311162305,1704948644968,-574.12,0.0003041,2]
[311162306,1704948644978,-500.0,0.0003041,2]
[311162307,1704948644987,-500.0,0.0003041,2]
[311162308,1704948644996,-500.0,0.0003041,2]
[311162309,1704948645006,-500.0,0.0003041,2]
[311162310,1704948645015,-500.0,0.0003041,2]
[311162311,1704948645025,-502.68276975,0.0003041,2]
[311162312,1704948645034,-296.81029934,0.0003041,2]
[311162313,1704948645042,-500.0,0.0003041,2]
[311162314,1704948645052,-500.0,0.0003041,2]
[311162315,1704948645061,-500.0,0.0003041,2]
[311162316,1704948645071,-500.0,0.0003041,2]
[311162317,1704948645080,-500.0,0.0003041,2]
[311162318,1704948645089,-504.82233197,0.0003041,2]
[311162319,1704948645098,-500.0,0.0003041,2]
[311162320,1704948645108,-500.0,0.0003041,2]
[311162321,1704948645117,-500.0,0.0003041,2]
[311162322,1704948645126,-500.0,0.0003041,2]
[311162323,1704948645135,-500.0,0.0003041,2]
[311162324,1704948645144,-597.46,0.0003041,2]
[311162325,1704948645153,-500.0,0.0003041,2]
[311162326,1704948645163,-500.0,0.0003041,2]
[311162327,1704948645173,-500.0,0.0003041,2]
[311162328,1704948645183,-655.2,0.0003041,2]
[311162329,1704948645192,-500.0,0.0003041,2]
[311162330,1704948645202,-500.0,0.0003041,2]
[311162331,1704948645211,-500.0,0.0003041,2]
[311162332,1704948645220,-500.0,0.0003041,2]
[311162333,1704948645228,-500.0,0.0003041,2]
[311162334,1704948645237,-681.26,0.0003041,2]
[311162335,1704948645246,-500.0,0.0003041,2]
[311162336,1704948645255,-500.0,0.0003041,2]
[311162337,1704948645264,-500.0,0.0003041,2]
[311162338,1704948645273,-500.0,0.0003041,2]
[311162339,1704948645282,-500.0,0.0003041,2]
[311162340,1704948645292,-503.84768849,0.0003041,2]
[311162341,1704948645300,-506.25057059,0.0003041,2]
[311162342,1704948645309,-500.0,0.0003041,2]
[311162343,1704948645318,-503.81039815,0.0003041,2]
[311162344,1704948645327,-500.0,0.0003041,2]
[311162345,1704948645336,-533.22,0.0003041,2]
[311162346,1704948645345,-500.0,0.0003041,2]
[311162347,1704948645354,-500.0,0.0003041,2]
[311162348,1704948645364,-500.0,0.0003041,2]
[311162349,1704948645373,-545.53911227,0.0003041,2]
[311162350,1704948645382,-500.0,0.0003041,2]
[311162351,1704948645392,-500.0,0.0003041,2]
[311162352,1704948645401,-500.0,0.0003041,2]
[311162353,1704948645410,-500.0,0.0003041,2]
[311162354,1704948645419,-500.0,0.0003041,2]
[311162355,1704948645428,-500.0,0.0003041,2]
[311162356,1704948645437,-500.0,0.0003041,2]
[311162357,1704948645446,-503.3321953,0.0003041,2]
[311162358,1704948645455,-538.97228615,0.0003041,2]
[311162359,1704948645465,-3027.97,0.0003041,2]
[311162360,1704948645474,-500.0,0.0003041,2]
[311162361,1704948645484,-500.0,0.0003041,2]
[311162362,1704948645493,-180.12976859,0.0003041,2]
[311162363,1704948645502,-1214.78,0.0003041,2]
[311162364,1704948645511,-676.3,0.0003041,2]
[311162365,1704948645520,-500.0,0.0003041,2]
[311162366,1704948645529,-500.0,0.0003041,2]
[311162367,1704948645538,-500.0,0.0003041,2]
[311162368,1704948645548,-967.17,0.0003041,2]
[311162369,1704948645557,-222.02839482,0.0003041,2]
[311162370,1704948645566,-500.0,0.0003041,2]
[311162372,1704948645575,-500.0,0.0003041,2]
[311162374,1704948645585,-500.0,0.0003041,2]
[311162376,1704948645594,-500.0,0.0003041,2]
[311162378,1704948645603,-500.0,0.0003041,2]
[311162380,1704948645613,-534.2,0.0003041,2]
[311162382,1704948645622,-500.0,0.0003041,2]
[311162384,1704948645632,-500.0,0.0003041,2]
[311162387,1704948645642,-654.98,0.0003041,2]
[311162389,1704948645651,-500.0,0.0003041,2]
[311162390,1704948645661,-950.06,0.0003041,2]
[311162392,1704948645670,-1173.55,0.0003041,2]
[311162395,1704948645680,-500.0,0.0003041,2]
[311162397,1704948645690,-860.45,0.0003041,2]
[311162398,1704948645699,-501.53777005,0.0003041,2]
[311162401,1704948645711,-500.0,0.0003041,2]
[311162402,1704948645722,-159.91775899,0.0003041,5]
[311162404,1704948645731,-309.91204737,0.0003041,2]
[311162406,1704948645747,-1988.11,0.0003041,2]
[311162408,1704948645756,-500.0,0.0003041,2]
[311162411,1704948645766,-815.25,0.0003041,2]
[311162413,1704948645776,-500.0,0.0003041,2]
[311162415,1704948645787,-500.0,0.0003041,2]
[311162418,1704948645796,-500.0,0.0003041,2]
[311162420,1704948645806,-500.0,0.0003041,2]
[311162422,1704948645816,-500.0,0.0003041,2]
[311162423,1704948645825,-500.0,0.0003041,2]
[311162426,1704948645835,-509.73800057,0.0003041,2]
[311162428,1704948645947,-1003.24708738,0.0003041,2]
[311162430,1704948645956,-509.19232355,0.0003041,2]
[311162432,1704948645967,-500.0,0.0003041,2]
[311162433,1704948645976,-9277.48,0.0003041,2]
[311162434,1704948645985,-509.69535594,0.0003041,2]
[311162435,1704948645994,-500.0,0.0003041,2]
[311162436,1704948646003,-501.32871188,0.0003041,2]
[311162437,1704948646012,-500.0,0.0003041,2]
[311162438,1704948646021,-1057.64,0.0003041,2]
[311162439,1704948646031,-500.0,0.0003041,2]
[311162440,1704948646041,-725.51,0.0003041,2]
[311162441,1704948646051,-500.0,0.0003041,2]
[311162442,1704948646060,-779.49,0.0003041,2]
[311162443,1704948646069,-500.0,0.0003041,2]
[311162444,1704948646078,-500.0,0.0003041,2]
[311162445,1704948646087,-503.768538,0.0003041,2]
[311162447,1704948646108,-5624.89,0.0003041,2]
[311162448,1704948646118,-500.0,0.0003041,2]